Cogmind - Beta 13 @@@ ROGUE MODE // 2024.07.05 @ 11:18:50 Player: Ecrucean Result: Destroyed by S-10 Pest with Light Assault Rifle Performance ------------- Evolutions (1) 500 Regions Visited (6) 1200 Robots Destroyed (67) 335 Value Destroyed (1412) 1412 Prototype IDs (29) 580 Alien Tech Used (0) 0 Bonus (0) 0 TOTAL SCORE: 4027 Bonus ------- None Cogmind --------- Core Integrity 0/400 Matter 300/300 Energy 95/100 System Corruption 0% Temperature Cool (0) Movement Treading (480) Ox4 Location -8/Mines Parts ------- > --- POWER (1) -------- (None) > --- PROPULSION (3) --- Light Treads > --- UTILITY (3) ------ Huge Storage Unit Improved Sensor Array Medium Armor Plating > --- WEAPON (2) ------- (None) > --- INVENTORY (25) --- Light Nuclear Core Aluminum Leg Aluminum Leg Improved Hover Unit Airjet Airjet Airjet Airjet Airjet Airjet Airjet Airjet Airjet Medium Storage Unit Large Storage Unit High-capacity Matter Pod (200) Seismic Detector Makeshift Transmission Jammer Propulsion Shielding Particle Gun Light Assault Rifle Autogun Field Lobotomy Kit (5) Heavy Hammer Peak State ------------ > --- POWER ------------ Ion Engine > --- PROPULSION ------- Light Treads Light Treads Light Treads > --- UTILITY ---------- Huge Storage Unit Improved Sensor Array Medium Armor Plating > --- WEAPON ----------- Assault Rifle Light Assault Rifle > --- INVENTORY -------- Light Nuclear Core Aluminum Leg Aluminum Leg Improved Hover Unit Airjet Airjet Airjet Airjet Airjet Airjet Airjet Airjet Airjet Medium Storage Unit Large Storage Unit High-capacity Matter Pod Seismic Detector Makeshift Transmission Jammer Propulsion Shielding Medium Armor Plating Medium Armor Plating Particle Gun Light Assault Rifle Field Lobotomy Kit Heavy Hammer [Rating: 18] Favorites ----------- Power Ion Engine Engine Ion Engine Propulsion Light Treads Treads Light Treads Leg Aluminum Leg Wheel Compact Wheel Utility Huge Storage Unit Device Improved Sensor Array Storage Huge Storage Unit Processor Signal Interpreter Protection Medium Armor Plating Weapon Assault Rifle Ballistic Gun Assault Rifle Build | -11 -10 -10 -9 -9 -9 -8 ------- Run | Yrd Mat Min Mat Min Exi Min Slots Evolved 2 | . . . 2 . . . Power . | . . . . . . . Propulsion 1 | . . . 1 . . . Utility 1 | . . . 1 . . . Weapon . | . . . . . . . Parts Attached 45 | 6 7 7 23 . 1 1 Power 4 | 1 . 1 2 . . . Engine 4 | 1 . 1 2 . . . Core . | . . . . . . . Reactor . | . . . . . . . Propulsion 19 | 2 2 4 11 . . . Treads 12 | . 1 2 9 . . . Leg 2 | 2 . . . . . . Wheel 5 | . 1 2 2 . . . Hover . | . . . . . . . Flight . | . . . . . . . Utility 13 | 1 4 . 6 . 1 1 Device 2 | . . . 1 . 1 . Storage 3 | 1 2 . . . . . Processor 1 | . 1 . . . . . Hackware . | . . . . . . . Protection 7 | . 1 . 5 . . 1 Artifact . | . . . . . . . Weapon 9 | 2 1 2 4 . . . Energy Gun . | . . . . . . . Energy Cannon . | . . . . . . . Ballistic Gun 9 | 2 1 2 4 . . . Ballistic Cannon . | . . . . . . . Launcher . | . . . . . . . Special Weapon . | . . . . . . . Impact Weapon . | . . . . . . . Slashing Weapon . | . . . . . . . Piercing Weapon . | . . . . . . . Special Melee Weapon . | . . . . . . . Unidentified Prototypes . | . . . . . . . Parts Lost 30 | . . 6 18 . . 6 Power 4 | . . 1 2 . . 1 Propulsion 14 | . . 3 9 . . 2 Utility 5 | . . . 4 . . 1 Weapon 7 | . . 2 3 . . 2 Highest Loss Streak 9 | . . 2 9 . . 6 To Critical Strikes . | . . . . . . . Average Slot Usage (%) 95 | . 98 97 91 100 100 98 Engine 11 | . 14 12 8 11 11 10 Treads 18 | . 9 14 22 33 33 33 Leg 2 | . 8 . . . . . Wheel 8 | . 9 13 8 . . . Storage 12 | . 14 14 11 11 11 11 Processor 6 | . . 14 9 . . . Protection 9 | . 12 . 8 22 21 11 Ballistic Gun 25 | . 27 27 22 22 22 21 Naked Turns . | . . . . . . . Heaviest Build 102 | 14 91 88 102 102 102 96 Greatest Support 60 | 20 20 16 60 60 60 60 Greatest Overweight (x) 9 | 1 9 8 6 1 1 4 Average Overweight (x) 4 | . 5 6 4 1 1 1 Largest Inventory Capacity 25 | 8 25 25 25 25 25 25 Average Capacity 23 | 7 20 25 25 25 25 25 Most Carried 25 | 6 22 25 25 24 25 25 Average Carried 20 | 3 14 23 23 24 24 24 Final Capacity 25 | 8 25 25 25 25 25 25 Final Carried 25 | 6 22 25 24 24 24 24 Class Distribution -------------------- 68% | Mutant 31% | Scavenger-Mutant Dominant Class ---------------- Mutant | -10/Materials Mutant | -10/Mines Scavenger-Mutant | -9/Materials Scavenger-Mutant | -9/Mines Scavenger-Mutant | -9/Exiles Scavenger-Mutant | -8/Mines Resources | -11 -10 -10 -9 -9 -9 -8 ----------- Run | Yrd Mat Min Mat Min Exi Min Matter Collected 1678 | 272 358 196 802 16 . 34 Remotely . | . . . . . . . Salvage Created 2132 | 72 510 255 1182 55 . 58 Parts 152 | 2 37 19 78 6 . 10 Haulers Intercepted 1 | . . . 1 . . . Recyclers Shooed 6 | . 1 1 4 . . . Parts Field Recycled . | . . . . . . . Retrieved Matter . | . . . . . . . Parts Self-Destructed . | . . . . . . . Prevented . | . . . . . . . Kills | -11 -10 -10 -9 -9 -9 -8 ------- Run | Yrd Mat Min Mat Min Exi Min Combat Hostiles Destroyed 55 | . 15 10 23 3 . 4 Guns 55 | . 15 10 23 3 . 4 Classes Destroyed 8 | 1 4 . 3 . . . Tunneler 2 | . . . 2 . . . Hauler 1 | . . . 1 . . . Recycler 4 | 1 1 . 2 . . . Operator 1 | . 1 . . . . . Watcher 4 | . 2 . 2 . . . Swarmer 29 | . 9 6 7 3 . 4 Grunt 20 | . 6 4 10 . . . Sentry 6 | . . . 6 . . . Best Kill Streak 7 | 1 3 3 7 3 . 4 Combat Bots Only 7 | . 3 3 7 3 . 4 Max Kills in Single Turn 2 | 1 1 1 2 1 . 1 Gunslinging 1 | . . . 1 . . . Exploded . | . . . . . . . Melee . | . . . . . . . Uniques/NPCs Destroyed . | . . . . . . . Combat | -11 -10 -10 -9 -9 -9 -8 -------- Run | Yrd Mat Min Mat Min Exi Min Hostile Shots Fired 400 | . 47 64 228 11 . 50 Missed 82 | . 10 12 47 3 . 10 Damage Taken 3678 | . 346 531 2259 62 . 480 Core 567 | . 46 114 362 . . 45 Absorbed by Shields . | . . . . . . . Regen/Repaired (Parts) 23 | . 23 . . . . . Core Remaining (%) 68 | 100 . 36 . . . . Volleys Fired 211 | 2 47 37 111 4 . 10 Largest 2 | 2 2 2 2 2 . 2 Hottest 40 | 40 40 40 40 40 . 40 Shots Fired 418 | 4 94 70 222 8 . 20 Gun 418 | 4 94 70 222 8 . 20 Cannon . | . . . . . . . Launcher . | . . . . . . . Special . | . . . . . . . Kinetic 418 | 4 94 70 222 8 . 20 Thermal . | . . . . . . . Explosive . | . . . . . . . Electromagnetic . | . . . . . . . Robot Hit Streak 29 | 3 13 7 29 2 . 5 Robot Miss Streak 4 | . 4 4 3 1 . 3 Penetration Max . | . . . . . . . Secondary Targets 6 | . . 2 4 . . . Max Gunslinging Chain 1 | . . 1 1 . . . Shots Hit Robots 295 | 3 62 47 169 4 . 10 Core Hits 115 | 2 29 18 58 4 . 4 Critical Kills . | . . . . . . . Critical Parts Destroyed . | . . . . . . . Critical Strikes . | . . . . . . . Melee Attacks . | . . . . . . . Impact . | . . . . . . . Slashing . | . . . . . . . Piercing . | . . . . . . . Sneak Attacks . | . . . . . . . Combat Hostiles . | . . . . . . . Follow-up Attacks . | . . . . . . . Damage Inflicted 3122 | 37 676 498 1741 61 . 109 Guns 3122 | 37 676 498 1741 61 . 109 Cannons . | . . . . . . . Explosions . | . . . . . . . Melee . | . . . . . . . Ramming . | . . . . . . . Kinetic 3122 | 37 676 498 1741 61 . 109 Thermal . | . . . . . . . Explosive . | . . . . . . . Electromagnetic . | . . . . . . . Impact . | . . . . . . . Slashing . | . . . . . . . Piercing . | . . . . . . . Highest Corruption . | . . . . . . . Average Corruption . | . . . . . . . Corruption Purged . | . . . . . . . Corruption Blocked . | . . . . . . . Overload Shots . | . . . . . . . Overflow Damage . | . . . . . . . Projectiles . | . . . . . . . Explosions . | . . . . . . . Melee . | . . . . . . . Knockbacks . | . . . . . . . Impact . | . . . . . . . Kinetic . | . . . . . . . Secondary . | . . . . . . . Self-Inflicted Damage . | . . . . . . . Shots . | . . . . . . . Rammed . | . . . . . . . Targets Rammed . | . . . . . . . Kicked . | . . . . . . . Crushed . | . . . . . . . Highest Temperature 30 | . 24 30 24 6 . 5 Average Temperature 6 | . 6 8 7 4 . 3 Received Heat Transfer 1227 | . 90 189 804 . . 144 Siege Activations . | . . . . . . . Robots Corrupted . | . . . . . . . Combat Hostiles . | . . . . . . . Parts Fried . | . . . . . . . Impact Corruptions . | . . . . . . . Robots Melted . | . . . . . . . Combat Hostiles . | . . . . . . . Parts Melted . | . . . . . . . Heat Transferred . | . . . . . . . Parts Sabotaged . | . . . . . . . Parts Stolen . | . . . . . . . Parts Stripped . | . . . . . . . Power Chain Reactions . | . . . . . . . Alert | -11 -10 -10 -9 -9 -9 -8 ------- Run | Yrd Mat Min Mat Min Exi Min Peak Influence 185 | 5 185 110 169 95 . 90 Initial 40 | . 3 40 . 10 . . Average 61 | 1 70 50 64 91 . 35 Maximum Alert Level . | . . . . . . . Low Security (%) 100 | 100 100 100 100 100 . 100 Level 1 . | . . . . . . . Level 2 . | . . . . . . . Level 3 . | . . . . . . . Level 4 . | . . . . . . . Level 5 . | . . . . . . . High Security . | . . . . . . . Max Security . | . . . . . . . Squads Dispatched 5 | . 2 . 3 . . . Investigation 2 | . 1 . 1 . . . Extermination . | . . . . . . . Reinforcement 3 | . 1 . 2 . . . Assault . | . . . . . . . Garrison . | . . . . . . . Intercept . | . . . . . . . Searches Triggered . | . . . . . . . Construction Impeded . | . . . . . . . Haulers Reinforced . | . . . . . . . Active Scanning Responses . | . . . . . . . Cargo Convoy Interrupts . | . . . . . . . Stealth | -11 -10 -10 -9 -9 -9 -8 --------- Run | Yrd Mat Min Mat Min Exi Min Distress Signals 3 | . . . 3 . . . Communications Jammed . | . . . . . . . Distress Signals . | . . . . . . . Times Spotted 90 | . 29 10 35 3 . 13 Peak Tracking Total 9 | . 3 3 9 3 . 9 Tactical Retreats 5 | . 1 . 4 . . . Traps | -11 -10 -10 -9 -9 -9 -8 ------- Run | Yrd Mat Min Mat Min Exi Min Traps Triggered 1 | . 1 . . . . . Indirectly . | . . . . . . . Trap Hack Attempts . | . . . . . . . Triggered . | . . . . . . . Disarmed . | . . . . . . . Reprogrammed . | . . . . . . . Reused . | . . . . . . . Traps Extracted . | . . . . . . . Installed . | . . . . . . . Triggered . | . . . . . . . Machines | -11 -10 -10 -9 -9 -9 -8 ---------- Run | Yrd Mat Min Mat Min Exi Min Machines Disabled . | . . . . . . . Max in Single Turn . | . . . . . . . Machines Repaired . | . . . . . . . Machines Dismantled . | . . . . . . . Machines Sabotaged . | . . . . . . . Overloaded Fab Kills . | . . . . . . . Hacking | -11 -10 -10 -9 -9 -9 -8 --------- Run | Yrd Mat Min Mat Min Exi Min Machines Accessed 17 | . 9 . 6 . 2 . Terminals 13 | . 7 . 6 . . . Fabricators . | . . . . . . . Repair Stations 1 | . 1 . . . . . Recycling Units 1 | . 1 . . . . . Scanalyzers . | . . . . . . . Garrison Access . | . . . . . . . Total Hacks 51 | . 29 . 20 . 2 . Successful 23 | . 14 . 7 . 2 . Failed 27 | . 14 . 13 . . . Catastrophic 5 | . 4 . 1 . . . Database Lockouts 1 | . 1 . . . . . Manual 28 | . 15 . 12 . 1 . Terminals 44 | . 24 . 20 . . . Fabricators . | . . . . . . . Repair Stations 3 | . 3 . . . . . Recycling Units 2 | . 2 . . . . . Scanalyzers . | . . . . . . . Garrison Access . | . . . . . . . Terminal Hacks 17 | . 9 . 6 . 2 . Record 1 | . . . . . 1 . Part Schematic 2 | . 2 . . . . . Robot Analysis 2 | . 2 . . . . . Prototype ID Bank 3 | . 2 . 1 . . . Alert Level 1 | . . . 1 . . . Unreport Threat 1 | . . . 1 . . . Locate Traps 4 | . 2 . 2 . . . Hauler Manifests 2 | . 1 . 1 . . . Derelict Proto ID Bank 1 | . . . . . 1 . Fabricator Hacks . | . . . . . . . Repair Station Hacks 2 | . 2 . . . . . Scan Component 1 | . 1 . . . . . Repair 1 | . 1 . . . . . Recycling Unit Hacks . | . . . . . . . Scanalyzer . | . . . . . . . Garrison Access Hacks . | . . . . . . . Unauthorized Hacks 4 | . 3 . 1 . . . Terminals 3 | . 2 . 1 . . . Track 1 | . 1 . . . . . Botnet 2 | . 1 . 1 . . . Fabricators . | . . . . . . . Repair Stations . | . . . . . . . Recycling Units 1 | . 1 . . . . . Recyclers 1 | . 1 . . . . . Scanalyzers . | . . . . . . . Garrison Access . | . . . . . . . Data Cores Recovered . | . . . . . . . Used . | . . . . . . . Hacking Detections 13 | . 7 . 6 . . . Full Trace Events 1 | . . . 1 . . . Feedback Events . | . . . . . . . Feedback Blocked . | . . . . . . . Robot Schematics Acquired . | . . . . . . . Robots Built . | . . . . . . . Authchips . | . . . . . . . Time . | . . . . . . . Total Robot Build Rating . | . . . . . . . Part Schematics Acquired 2 | . 2 . . . . . Parts Built . | . . . . . . . Authchips . | . . . . . . . Time . | . . . . . . . Total Part Build Rating . | . . . . . . . Parts Repaired 1 | . 1 . . . . . Time 26 | . 26 . . . . . Parts Recycled . | . . . . . . . Recycled Matter . | . . . . . . . Retrieved Matter . | . . . . . . . Retrieved Components . | . . . . . . . Parts Scanalyzed . | . . . . . . . Part Schematics Acquired . | . . . . . . . Parts Damaged . | . . . . . . . Bothacking | -11 -10 -10 -9 -9 -9 -8 ------------ Run | Yrd Mat Min Mat Min Exi Min Used RIF Installer . | . . . . . . . Robots Hacked . | . . . . . . . Non-combat . | . . . . . . . Combat . | . . . . . . . Robot Hacks Applied . | . . . . . . . Relay Couplers Released . | . . . . . . . Fabnet Peak Effective % . | . . . . . . . Robots Rewired . | . . . . . . . Allies Hacked . | . . . . . . . Hacks Repelled . | . . . . . . . Allies | -11 -10 -10 -9 -9 -9 -8 -------- Run | Yrd Mat Min Mat Min Exi Min Total Allies . | . . . . . . . Largest Group . | . . . . . . . Highest-Rated Group . | . . . . . . . Highest-Rated Ally . | . . . . . . . Total Orders . | . . . . . . . Ally Attacks . | . . . . . . . Total Damage . | . . . . . . . Kills . | . . . . . . . Allies Corrupted . | . . . . . . . Allies Melted . | . . . . . . . Intel | -11 -10 -10 -9 -9 -9 -8 ------- Run | Yrd Mat Min Mat Min Exi Min Robot Analysis Total 2 | . 2 . . . . . Derelict Logs Recovered 2 | . . 2 . . . . Drone Launches . | . . . . . . . Drone Recoveries . | . . . . . . . Exploration | -11 -10 -10 -9 -9 -9 -8 ------------- Run | Yrd Mat Min Mat Min Exi Min Turns Passed 6556 | 88 1968 1373 2140 117 654 216 Spaces Moved 2864 | 58 878 660 876 45 271 76 Core 6 | 6 . . . . . . Treads 530 | . . . 138 45 271 76 Legs 388 | 52 336 . . . . . Wheels 1940 | . 542 660 738 . . . Hover . | . . . . . . . Flight . | . . . . . . . Fastest Speed 50 | 50 110 175 175 240 240 240 Average Speed 196 | 113 192 188 191 240 240 244 Slowest Speed 480 | 120 215 200 480 240 240 480 Overloaded Moves . | . . . . . . . Propulsion Burnouts . | . . . . . . . Robots Hopped . | . . . . . . . Cave-ins Triggered . | . . . . . . . Exploration Rate (%) 51 | 4 99 102 58 16 61 18 Regions Visited 6 Branch Regions 4 Pre-discovered Areas 1 | . . . . . 1 . Known Exits Taken 3 | . 1 1 1 . . . Unknown Exits Taken 3 | 1 . . . 1 1 . Scrap Searched 4 | . . 3 . . . 1 Spaces Dug . | . . . . . . . Terrain Destroyed . | . . . . . . . Melee . | . . . . . . . Projectile . | . . . . . . . AOE . | . . . . . . . Terrain Rammed . | . . . . . . . Walls Destroyed . | . . . . . . . Machines Disabled . | . . . . . . . Actions | -11 -10 -10 -9 -9 -9 -8 --------- Run | Yrd Mat Min Mat Min Exi Min Total 3430 | 73 1071 726 1145 48 276 91 Wait 235 | 2 120 14 96 . . 3 Move 2858 | 57 877 659 875 44 270 76 Hop . | . . . . . . . Pick Up 59 | 6 15 9 26 . 2 1 Fast Attach 16 | 6 4 . 6 . . . Attach 23 | . . 6 16 . . 1 Detach 5 | . 3 . 2 . . . Swap 6 | . 3 1 1 . 1 . Drop 16 | . 2 . 12 . 2 . Fire 211 | 2 47 37 111 4 . 10 Melee . | . . . . . . . Ram . | . . . . . . . Kick . | . . . . . . . Crush . | . . . . . . . Escape Stasis . | . . . . . . . Rewire 1 | . . . . . 1 . Trap . | . . . . . . . Miscellaneous . | . . . . . . . Route ------- -11/Scrapyard -10/Materials (discovered 5 exits: *Mat x3 / *Min x2) -10/Mines (discovered 3 exits: *Mat x2 / *Sub) -9/Materials (discovered 3 exits: *Mat x2 / *Min) -9/Mines (discovered 2 exits: *Exi / [*Zio]) -9/Exiles (discovered 2 exits: [*Min x2]) -8/Mines History --------- Turn | Location | Event 18 | -11/Scrapyard | Discovered new exit (range 13) 89 | -11/Scrapyard | Entered Materials 262 | -10/Materials | Repaired Lgt. Assault Rifle 302 | -10/Materials | Build established: Mutant 442 | -10/Materials | Discovered new exit (range 13) 543 | -10/Materials | Discovered new exit (range 6) 809 | -10/Materials | Discovered new exit (range 13) 813 | -10/Materials | Discovered new exit (range 12) 1300 | -10/Materials | Discovered new exit (range 3) 1688 | -10/Materials | Central database locked down 2055 | -10/Materials | Identified exit to Mines 2057 | -10/Materials | Entered Mines 2079 | -10/Mines | Learned Materials emergency access door positions 2173 | -10/Mines | Discovered new exit (range 15) 2201 | -10/Mines | Identified exit to Materials 2487 | -10/Mines | Core integrity fell below 50% 2865 | -10/Mines | Learned Materials trap positions 2935 | -10/Mines | Discovered exit to Materials (range 8) 3231 | -10/Mines | Discovered new exit (range 6) 3240 | -10/Mines | Identified exit to Subcaves 3430 | -10/Mines | Entered Materials 3430 | -9/Materials | Evolved 2 slots: Propulsion x1, Utility x1 3431 | -9/Materials | Loaded intel: 18 trap records 3994 | -9/Materials | Discovered new exit (range 4) 3999 | -9/Materials | Identified exit to Mines 4077 | -9/Materials | Lost 3 parts (1p1n1u) 4091 | -9/Materials | Destroyed 7 combat bots 4236 | -9/Materials | Discovered new exit (range 16) 4270 | -9/Materials | Identified exit to Materials 4335 | -9/Materials | Lost 3 parts (2n1w) 4585 | -9/Materials | Build established: Scavenger-Mutant 4736 | -9/Materials | Core integrity fell below 50% 4795 | -9/Materials | Lost 9 parts (1p5n1u2w) 4976 | -9/Materials | Discovered exit to Materials (range 9) 5332 | -9/Materials | Core integrity fell below 20% 5570 | -9/Materials | Entered Mines 5621 | -9/Mines | A Derelict revealed a hidden shortcut to a safe place 5678 | -9/Mines | Deemed a non-threat by the Exiles lab entrance 5678 | -9/Mines | Discovered new exit (range 5) 5687 | -9/Mines | Entered Exiles 5687 | -9/Exiles | Found Exiles lab destroyed 5726 | -9/Exiles | Discovered new exit (range 15) 5943 | -9/Exiles | Learned location of Zion (-7) 6085 | -9/Exiles | Opened EX-Vault 6105 | -9/Exiles | Found Field Lobotomy Kit 6320 | -9/Exiles | Discovered new exit (range 10) 6341 | -9/Exiles | Entered Mines 6557 | -8/Mines | Destroyed by S-10 Pest with Light Assault Rifle Last Messages --------------- 06467_ R-06 Scavenger collects Flight Unit. 06476_ Destroyed Lgt. Ion Engine. 06482_ S-10 Pest destroyed. 06489_ R-06 Scavenger collects Lgt. Ion Engine. 06494_ R-06 Scavenger collects Flight Unit. 06495_ Searching scrap... 06495_ Found Com. Battery. 06495_ Found Airjet. 06495_ Found Autogun. 06495_ Found 23 Matter. 06496_ Acquired 23 matter. 06497_ R-06 Scavenger collects Flight Unit. 06500_ Acquired Autogun. 06543_ Ion Engine destroyed. 06544_ Critical hit (Burn: +37). 06546_ Lgt. Assault Rifle destroyed. 06546_ Med. Armor Plating destroyed. 06550_ Lgt. Treads destroyed. 06552_ Assault Rifle destroyed. 06554_ Lgt. Treads destroyed. Map ----- +----------------------------------------------------+ | ?????????????????????????????????????????????????? | | ?????????????????????????????????????????????????? | | ?????????????????????????????????????????????????? | | ?????????????????????????????????????????????????? | | ?????????????????????????????????????????????????? | | ?????????????????????????????????????????????????? | | ?????????????????????????????????????????????????? | | ?????????????????????????????????????????????????? | | ?????????????????????????????????????????????????? | | ?????????????????????????????????????????????????? | | ?????????????????????????????????????????????????? | | ?????????????????????????????????????????????????? | | ?????????????????????????????????????????????????? | | ?????????????????????????????????????????????????? | | ?????????????????????????????????????????????????? | | ?????????????????????????????????????????????????? | | ?????????????????????????????????????????????????? | | ?????????????????????????????????????????????????? | | ?????????????????????????????????????????????????? | | ?????????????????????????????????????????????????? | | ?????????????????????????????????????????????????? | | ?????????????????????????????????????????????????? | | ?????????????????????????????????????????????????? | | ????????????????????????#####????????????????????? | | ????????????????????????# ?????????????????????? | | ????????????????????????#@#??????????????????????? | | ????????????????????????#s#??????????????????????? | | ??????????????????????###l#??????????????????????? | | ?????????????????????## g##?????????????????????? | | ?????????????????????# s #######???????????????? | | ?????????????????????# g #???????????????? | | ?????????????????????##?s #### #???????????????? | | ??????????????######### #????????????????????? | | ????????# g ##????????????????????? | | ??????????????######### g ##?????????????????????? | | ??????????????????????# ##??????????????????????? | | ??????????????????????# #???????????????????????? | | ??????????????????????# #???????????????????????? | | ?????????????????????## ##??????????????????????? | | ????????????????????## ##?????????????????????? | | ???????????????????## #?????????????????????? | | ???????####???????## #?????????????????????? | | ??????## #####???# ##?????????????????????? | | ?????## [=#???# ##??????????????????????? | | ?##### *==#???## ##???????????????????????? | | ## ####%###### ##???????????????????????? | | # ##??# ! #???????????????????????? | | # ##???# = #?????????????????????? | | # ##????############ ##?????????????????????? | | ## ##????????????????###??????????????????????? | +----------------------------------------------------+ Best States ------------- Heat Dissipation 42 Energy Generation 10 Energy Capacity 250 Matter Stores 300 Matter Capacity 300 Sight Range 16 Robot Scan Range 15 Terrain Scan Density 10 Armor Coverage 450 Evasion (%) 55 Recoil Reduction 3 Item Schematics ----------------- Propulsion Shielding | -10/Materials | Hacked Utility Shielding | -10/Materials | Hacked Robot Schematics ------------------ None Fabricated ------------ Nothing Alien Tech Used ----------------- None Achievements -------------- Hey, That's Mine! Challenges ------------ None Game ------ Seed MakeshiftBottomlessConstruct Manual? 0 Play Time 00:31:25 Cumulative 2.3 hours Start 2024.07.04 @ 23:42:05 End 2024.07.05 @ 11:18:50 Sessions 2 Manual Loads 0 Difficulty Rogue Special Mode None Game No. 7 Rogue 7 Adventurer 0 Explorer 0 Win Type - Total 0 Types 0/0/0/0/0/0/0/0/0 Lore% 11 Gallery% 4 Achievement% 7 Wizard Run 0 Options --------- Layout 1 ASCII 1 Keyboard 1 Movement Numpad Keybinds 0 Fullscreen 1 Font 24/Smallcaps Map View 50x35 Zoom Use 0% Tactical HUD 1 Map Filters NONE Filters NONE Steam 1 RUN: 296c0554-0390-48b9-b218-cf6e0c2ff184